bitfinex/quotes_ETHUSD_20220202
["timestamp","ask_amount","ask_price","bid_price","bid_amount"]
[1643831583096,0.1841,2716.3,2715.4,0.89633415]
[1643831583297,0.1841,2716.1,2715.8,0.00538866]
[1643831583497,0.53,2716.0,2715.8,0.00538866]
[1643831583696,2.3686458,2716.4,2715.8,0.00538866]
[1643831583697,0.53,2715.9,2715.8,0.00538866]
[1643831584197,0.53,2715.9,2715.4,0.00237045]
[1643831584396,0.53,2715.9,2715.7,0.00316784]
[1643831585197,0.53,2715.9,2715.4,0.00237045]
[1643831585598,0.53,2715.9,2715.7,0.0031679]
[1643831586400,0.53,2715.9,2715.4,0.00237045]
[1643831586840,0.52919928,2715.9,2715.7,0.00539236]
[1643831587643,0.52919928,2715.9,2715.5,0.77076951]
[1643831587843,0.52919928,2715.9,2715.7,0.00539236]
[1643831588945,0.71884109,2715.9,2715.4,0.00237045]
[1643831589147,0.71884109,2715.9,2715.7,0.00539236]
[1643831589544,2.81721009,2715.9,2715.7,0.00539236]
[1643831589744,0.71884109,2715.9,2715.7,0.00539236]
[1643831590145,0.71884109,2715.9,2715.4,0.00237045]
[1643831590496,0.52919928,2715.9,2715.7,0.00539236]
[1643831591395,0.52919928,2715.9,2715.4,0.00237045]
[1643831591597,0.52919928,2715.9,2715.7,0.00539236]
[1643831592495,0.52919928,2715.9,2715.4,0.00237045]
[1643831592696,0.52919928,2715.9,2715.2,0.81531051]
[1643831594550,0.82919928,2715.9,2715.2,0.81531051]
[1643831594748,0.82919928,2715.9,2715.1,5.99924867]
[1643831594749,2.9162658,2715.9,2715.1,5.99924867]
[1643831595145,0.00539211,2715.7,2715.2,0.00539315]
[1643831595344,0.53,2715.6,2715.2,0.00539315]
[1643831596145,0.53,2715.6,2715.1,3.50617136]
[1643831596345,0.00539229,2715.5,2715.2,0.00539302]
[1643831596545,0.53539229,2715.5,2715.2,0.00539302]
[1643831597346,0.53539229,2715.5,2715.1,3.66287116]
[1643831597347,0.53,2715.5,2715.1,3.66287116]
[1643831597549,0.53539234,2715.5,2715.2,0.00539298]
[1643831598593,0.53,2715.5,2715.1,2.69024867]
[1643831598794,0.53539234,2715.5,2715.2,0.00539298]
[1643831599696,0.53,2715.5,2715.1,2.69024867]
[1643831599894,0.53,2715.5,2715.2,0.00539298]
[1643831599895,0.53539234,2715.5,2715.2,0.00539298]
[1643831600696,1.113,2715.4,2715.2,0.00539298]
[1643831600896,1.643,2715.3,2715.1,2.50614867]
[1643831601095,1.643,2715.3,2715.2,0.00539298]
[1643831602060,1.643,2715.3,2715.1,2.50614867]
[1643831602262,1.643,2715.3,2715.1,2.51154167]
[1643831603262,1.643,2715.3,2715.1,2.50614867]
[1643831603664,5.28635228,2715.2,2715.1,2.51154173]
[1643831603867,5.83598308,2715.2,2715.1,2.51154173]
[1643831604064,3.743,2715.2,2715.1,2.51154173]
[1643831604464,3.743,2715.2,2715.1,2.50614867]
[1643831605265,1.643,2715.2,2715.1,2.50614867]
[1643831609261,1.943,2715.2,2715.1,2.50614867]
[1643831609453,3.50445881,2715.2,2715.1,2.50614867]
[1643831609851,4.50445881,2715.2,2715.1,2.50614867]
[1643831610452,4.64898714,2715.2,2715.1,2.50614867]
[1643831611457,4.50445881,2715.2,2715.1,2.50614867]
[1643831612853,3.97445881,2715.2,2715.1,2.50614867]
[1643831613098,4.50445881,2715.2,2715.1,2.50614867]
[1643831613294,3.97445881,2715.2,2715.1,2.50614867]
[1643831614396,4.50445881,2715.2,2715.1,2.50614867]
[1643831615796,4.50051481,2715.2,2715.1,2.50614867]
[1643831618451,4.50051481,2715.2,2715.1,2.49217267]
[1643831618651,4.50051481,2715.2,2715.0,0.00496081]
[1643831618652,5.42160411,2715.2,2715.0,0.00496081]
[1643831618855,3.55063246,2715.1,2714.8,0.00234748]
[1643831619051,3.55063246,2715.1,2714.7,0.1841]
[1643831619052,1.113,2714.9,2714.7,0.1841]
[1643831619252,1.113,2714.8,2714.7,0.1841]
[1643831620256,1.26103396,2714.8,2714.4,0.1841]
[1643831620496,1.113,2714.8,2714.6,0.00496127]
[1643831621298,1.113,2714.8,2714.4,0.1841]
[1643831621500,1.113,2714.8,2714.6,0.00496133]
[1643831621700,6.15476138,2714.7,2714.6,0.00496133]
[1643831622097,7.15476138,2714.7,2714.6,0.00496133]
[1643831622496,7.34921085,2714.7,2714.1,0.00234748]
[1643831622698,1.113,2714.5,2714.1,0.02244743]
[1643831622898,1.113,2714.3,2714.1,0.02244743]
[1643831623099,1.113,2714.3,2714.1,0.02009995]
[1643831623100,1.643,2714.3,2714.1,0.02009995]
[1643831623700,1.643,2714.3,2714.0,0.1841]
[1643831624102,1.643,2714.3,2714.1,0.00502475]
[1643831624954,1.643,2714.3,2714.0,0.1841]
[1643831625150,1.643,2714.3,2714.1,0.00502475]
[1643831625350,1.639048,2714.3,2714.1,0.00502475]
[1643831625855,2.40675714,2714.3,2714.1,0.00502475]
[1643831626050,2.40675714,2714.3,2713.9,0.04614748]
[1643831626453,2.40675714,2714.3,2714.1,0.00501565]
[1643831627351,2.40675714,2714.3,2713.9,0.04614748]
[1643831627352,1.109048,2714.2,2713.9,0.04614748]
[1643831627552,1.109048,2714.0,2713.9,0.04614748]
[1643831627752,1.639048,2714.0,2713.9,0.0438]
[1643831629711,1.635096,2714.0,2713.9,0.0438]
[1643831631113,1.105096,2714.0,2713.9,0.0438]
[1643831631509,1.105096,2714.0,2713.9,0.21559636]
[1643831632356,1.105096,2714.0,2713.9,0.0438]
[1643831636806,1.405096,2714.0,2713.9,0.0438]
[1643831637008,1.105096,2714.0,2713.9,0.0438]
[1643831637409,3.705096,2713.9,2713.8,0.00315211]
[1643831637609,4.235096,2713.9,2713.8,0.00315211]
[1643831637808,5.235096,2713.9,2713.8,0.00315211]
[1643831638110,4.19739322,2713.9,2713.5,1.0814588]
[1643831638310,1.105096,2713.6,2713.5,1.0814588]
[1643831638508,1.635096,2713.6,2713.5,1.0814588]
[1643831638712,1.935096,2713.6,2713.5,1.0814588]
[1643831640353,1.635096,2713.6,2713.5,1.0814588]
[1643831641758,1.105096,2713.6,2713.5,1.0814588]
[1643831641955,1.101144,2713.6,2713.5,1.0814588]
[1643831643001,1.101144,2713.6,2713.5,1.76263024]
[1643831643202,1.101144,2713.6,2713.5,3.9888667]
[1643831643406,0.1842,2714.5,2713.5,9.14687214]
[1643831643601,2.28965012,2714.8,2713.6,1.1293]
[1643831643804,1.56200423,2714.7,2713.7,0.1842]
[1643831644006,2.10545012,2714.6,2713.7,0.1842]
[1643831644203,1.74620423,2714.5,2713.7,0.1842]
[1643831644403,1.56200423,2714.4,2713.7,0.18960638]
[1643831644604,1.56200423,2714.4,2714.1,0.91072841]
[1643831644605,0.9213158,2714.4,2714.1,0.91072841]
[1643831645610,0.1842,2714.8,2714.1,0.91072841]
[1643831645811,1.56196719,2714.7,2714.1,0.91072841]
[1643831646104,1.56196719,2714.6,2714.1,0.91072841]
[1643831646306,0.13025433,2714.9,2714.2,0.1842]
[1643831646608,1.56189281,2714.8,2714.2,0.1842]
[1643831647059,1.75704388,2714.8,2714.2,0.1842]
[1643831647259,1.56189281,2714.7,2714.2,0.1842]
[1643831647459,1.56189281,2714.7,2714.1,0.1841]
[1643831647460,1.86189281,2714.7,2714.1,0.1841]
[1643831647659,1.56189281,2714.6,2714.1,0.1841]
[1643831647860,1.43025433,2714.9,2714.1,0.1841]
[1643831648059,1.56190532,2714.8,2714.1,0.1841]
[1643831648359,1.56190532,2714.8,2714.3,0.77418037]
[1643831648561,0.00540389,2715.0,2714.3,1.86358037]
[1643831648760,0.00540389,2715.0,2714.3,3.39168037]
[1643831648961,0.00540389,2715.0,2714.4,0.53]
[1643831649163,0.1841,2715.6,2714.4,1.53]
[1643831649361,0.00540409,2715.0,2714.4,1.83]
[1643831649561,0.00540409,2715.0,2714.8,0.78295873]
[1643831649764,0.00540409,2715.0,2714.9,3.5841]
[1643831649963,0.00540409,2715.0,2714.9,4.4379]
[1643831650161,2.29003266,2715.8,2714.9,4.4379]
[1643831650360,0.00540417,2715.1,2714.9,4.4379]
[1643831650637,0.00540417,2715.1,2714.9,1.0379]
[1643831650819,0.00540417,2715.1,2714.9,0.1841]
[1643831651017,1.56166718,2715.0,2714.8,0.1841]
[1643831651619,1.56166718,2714.9,2714.3,0.1841]
[1643831651821,1.56166718,2714.9,2714.3,1.20765577]
[1643831652018,1.56166718,2714.9,2714.3,1.00651811]
[1643831652819,0.00540405,2715.0,2714.3,1.00651811]
[1643831653020,1.56169935,2714.9,2714.3,1.00651811]
[1643831653318,1.56169935,2714.9,2714.4,0.00231788]
[1643831653519,1.56169935,2714.9,2714.5,0.1841]
[1643831653921,1.56169935,2714.8,2714.5,0.1841]
[1643831654117,2.38043005,2715.2,2714.5,0.1841]
[1643831654118,0.00540409,2715.0,2714.5,0.1841]
[1643831654358,1.5617564,2714.9,2714.5,0.1966744]
[1643831654555,0.00540409,2715.0,2714.5,0.1966744]
[1643831654556,0.00540409,2715.0,2714.6,0.00231788]
[1643831654954,0.1841,2715.4,2714.6,0.00231788]
[1643831655153,1.5616292,2715.3,2714.6,0.00231788]
[1643831655354,0.00540422,2715.0,2714.6,0.00231788]
[1643831655554,1.5616292,2714.9,2714.6,0.00231788]
[1643831656255,1.5616292,2714.9,2714.5,0.1966744]
[1643831656555,0.00540418,2715.0,2714.5,0.0125744]
[1643831656858,1.56168412,2714.9,2714.5,0.0125744]
[1643831657056,0.00540418,2715.0,2714.5,0.0125744]
[1643831657254,1.56164799,2714.9,2714.5,0.0125744]
[1643831657455,0.1841,2715.2,2714.5,0.0125744]
[1643831657655,0.00540418,2715.0,2714.5,0.0125744]
[1643831657856,1.56164813,2714.9,2714.7,0.82748608]
[1643831658506,0.1841,2715.2,2714.7,0.82748608]
[1643831658710,1.56161471,2715.1,2714.7,0.82748608]
[1643831658908,2.6589429,2715.7,2714.7,0.82748608]
[1643831658909,1.56701893,2715.0,2714.7,0.82748608]
[1643831659110,0.00540422,2715.0,2714.7,0.82748608]
[1643831659809,0.1841,2715.6,2714.7,0.82748608]
[1643831660008,0.00540426,2715.0,2714.7,0.82748608]
[1643831661009,0.1841,2715.4,2714.7,0.82748608]
[1643831661208,0.00540426,2715.0,2714.7,0.82748608]
[1643831662264,0.1841,2715.6,2714.7,0.82748608]
[1643831662466,0.00540426,2715.0,2714.7,0.82748608]
[1643831663367,1.1050236,2715.6,2714.7,0.82748608]
[1643831663566,0.00540426,2715.0,2714.7,0.82748608]
[1643831663967,0.00540426,2715.0,2714.6,2.4151]
[1643831664570,0.1841,2715.5,2714.6,1.4151]
[1643831664773,1.56153518,2715.4,2714.6,1.4151]
[1643831664971,0.00540422,2715.0,2714.7,0.184]
[1643831665169,0.00540422,2715.0,2714.8,0.53]
[1643831665601,0.00540422,2715.0,2714.9,5.534]
[1643831665602,0.0043675,2715.0,2714.9,5.534]
[1643831665802,0.1841,2716.0,2715.8,0.67519937]
[1643831666002,0.1841,2716.0,2715.0,3.3814]
[1643831666301,0.1841,2716.1,2715.0,4.9114]
[1643831666502,0.1841,2716.1,2715.1,0.184]
[1643831666503,1.56119927,2716.0,2715.1,0.184]
[1643831666701,0.1841,2715.9,2715.1,0.184]
[1643831666902,1.56119927,2715.8,2715.2,1.10468]
[1643831667105,1.56119927,2715.7,2715.4,0.93005963]
[1643831667302,0.00226177,2715.6,2715.4,0.93005963]
[1643831668302,1.56118499,2715.9,2715.4,0.93005963]
[1643831668501,0.00226177,2715.6,2715.4,0.93005963]
[1643831668905,0.00226177,2715.6,2715.4,1.23005963]
[1643831669354,1.56117308,2716.1,2715.4,1.23005963]
[1643831669553,0.00540353,2715.6,2715.4,1.23005963]
[1643831669951,0.00540353,2715.6,2715.5,5.534]
[1643831670351,0.00540353,2715.6,2715.5,6.534]
[1643831670552,0.1841,2716.4,2715.5,6.534]
[1643831670750,1.56114118,2716.3,2715.6,1.0]
[1643831670953,0.00540348,2715.7,2715.6,1.0]
[1643831671352,0.00540348,2715.7,2715.6,4.0]
[1643831671851,0.1839,2716.2,2715.6,4.0]
[1643831672051,0.00540336,2715.8,2715.6,4.0]
[1643831672257,0.00540336,2715.8,2715.7,5.35]
[1643831672753,0.00540336,2715.8,2715.7,6.35]
[1643831673008,0.1841,2716.5,2715.7,6.35]
[1643831673208,0.00540324,2715.9,2715.7,6.35]
[1643831674210,0.98674982,2716.5,2715.7,6.35]
[1643831674409,0.00540319,2715.9,2715.7,6.35]
[1643831674610,0.00540319,2715.9,2715.7,5.35]
[1643831675412,0.18052506,2716.3,2715.7,5.35]
[1643831675611,1.56114808,2716.2,2715.7,5.35]
[1643831675811,0.00540319,2715.9,2715.5,1.8889]
[1643831676012,0.00540319,2715.9,2715.5,1.1748]
[1643831676751,2.05928225,2716.2,2715.5,1.1748]
[1643831676955,0.0054033,2715.8,2715.5,1.1748]
[1643831677852,0.1841,2716.1,2715.5,1.1748]
[1643831678052,0.00540336,2715.8,2715.5,1.1748]
[1643831679153,1.8613678,2715.7,2715.3,3.9714]
[1643831679354,1.5613678,2715.6,2715.1,4.1644]
[1643831679554,2.08573809,2715.5,2715.1,4.1644]
[1643831679754,1.26017042,2715.4,2715.1,0.1841]
[1643831679957,2.1285622,2715.3,2715.1,0.1841]
[1643831680154,0.9209855,2715.3,2715.1,0.1841]
[1643831680355,1.1050855,2715.3,2715.1,0.1841]
[1643831681009,1.56164658,2715.2,2715.1,0.1841]
[1643831681307,1.56164658,2715.2,2714.5,1.2044]
[1643831681907,0.9210619,2715.0,2714.5,1.2044]
[1643831682306,0.9210619,2715.0,2714.4,4.01381788]
[1643831687562,1.56171204,2714.9,2714.4,4.01381788]
[1643831688007,1.56171204,2714.9,2714.4,0.91135128]
[1643831688209,1.56171204,2714.9,2714.4,0.9090334]
[1643831690011,2.48285594,2714.9,2714.4,0.9090334]
[1643831690214,1.56171204,2714.8,2714.4,0.7249334]
[1643831691416,1.56171204,2714.8,2714.3,4.0475]
[1643831691613,1.56171204,2714.8,2714.3,0.1841]
[1643831693661,1.56171204,2714.8,2714.2,0.94244]
[1643831693859,1.8423067,2715.1,2714.2,0.94785129]
[1643831693860,1.56171204,2714.7,2714.2,0.94785129]
[1643831694060,2.03181629,2715.1,2714.2,0.94785129]
[1643831694259,1.56175059,2715.0,2714.2,0.94785129]
[1643831694660,1.56175059,2715.0,2714.2,0.94244]
[1643831694864,2.48284059,2715.0,2714.2,0.94785134]
[1643831695062,1.56175059,2714.9,2714.2,0.94785134]
[1643831695263,1.56175059,2714.9,2714.2,0.89785134]
[1643831695903,1.56175059,2714.9,2714.2,0.89244]
[1643831696104,1.56175059,2714.9,2714.2,0.89785129]
[1643831697105,1.56175059,2714.9,2714.2,0.89244]
[1643831697305,1.56175059,2714.9,2714.2,0.89785129]
[1643831698008,0.92109,2715.0,2714.2,0.89785129]
[1643831698206,1.56174857,2714.9,2714.2,0.89244]
[1643831698407,1.56174857,2714.9,2714.2,0.89785129]
[1643831699455,1.56174857,2714.9,2714.2,0.89244]
[1643831699656,1.56174857,2714.9,2714.2,0.89785129]
[1643831699860,1.56174857,2714.9,2714.2,0.18951129]
[1643831700061,1.1052799,2714.8,2714.2,0.18951129]
[1643831700258,2.39673502,2714.7,2714.2,0.18951129]
[1643831700560,1.74584857,2714.6,2714.2,0.18951129]
[1643831700756,1.74584857,2714.6,2714.2,0.1841]
[1643831700757,1.56174857,2714.5,2714.2,0.1841]
[1643831700956,0.1842,2714.4,2714.2,0.18951121]
[1643831701154,1.56174857,2714.3,2714.2,0.18951121]
[1643831701755,1.86174857,2714.3,2714.2,0.18951121]
[1643831701956,1.86174857,2714.3,2714.2,0.1841]
[1643831702355,1.86174857,2714.3,2714.1,0.00541128]
[1643831702557,3.86174857,2714.2,2714.1,0.00541128]
[1643831702759,3.86174857,2714.2,2713.5,1.0814588]
[1643831702760,4.6,2714.1,2713.5,1.0814588]
[1643831703029,0.9215352,2713.7,2713.5,1.0814588]
[1643831703222,1.4515352,2713.7,2713.5,1.0814588]
[1643831703421,3.0067642,2713.6,2713.5,1.0814588]
[1643831704418,0.1567642,2713.6,2713.5,1.0814588]
[1643831704721,4.8,2713.4,2712.2,9.25546068]
[1643831704926,4.37828843,2713.3,2712.2,5.5569]
[1643831705124,1.56255559,2713.2,2712.0,0.1843]
[1643831705423,2.81573284,2713.1,2712.0,0.1843]
[1643831705724,0.15592995,2712.1,2712.0,0.1843]
[1643831705919,0.82024804,2712.2,2711.7,3.63]
[1643831705920,0.82392775,2712.2,2711.7,3.63]
[1643831706119,0.82598142,2712.2,2711.3,0.1842]
[1643831707055,0.82202942,2712.2,2711.6,0.00541417]
[1643831707260,0.82202942,2712.2,2711.5,0.13961417]
[1643831708555,0.82202942,2712.2,2711.4,0.1842]
[1643831709256,0.82202942,2712.2,2711.5,0.00229598]
[1643831709558,0.00178138,2712.2,2711.5,0.00229598]
[1643831711006,0.00178138,2712.2,2711.7,0.87848491]
[1643831711607,0.00178138,2712.2,2711.6,0.00229598]
[1643831711804,0.00178138,2712.2,2711.7,0.1842]
[1643831712403,0.00178138,2712.2,2711.7,0.1342]
[1643831714570,0.00178138,2712.2,2711.7,0.9749197]
[1643831714773,0.00178138,2712.2,2711.7,0.1342]
[1643831715771,0.00178138,2712.2,2711.7,0.98630602]
[1643831716374,0.00178138,2712.2,2711.7,0.988602]
[1643831716575,0.00178138,2712.2,2711.7,0.13649598]
[1643831717475,0.00178138,2712.2,2711.7,0.00229598]
[1643831721770,1.17998922,2712.2,2711.7,0.00229598]
[1643831721957,2.09934318,2712.1,2711.7,0.00229598]
[1643831722159,5.35,2711.9,2711.4,1.516392]
[1643831722461,5.35,2711.9,2711.4,0.17001607]
[1643831722462,0.99999999,2711.7,2711.4,0.17001607]
[1643831722772,0.99999999,2711.7,2710.0,3.1474]
[1643831722773,1.66831295,2710.4,2709.9,7.4]
[1643831722972,2.15558167,2710.3,2709.9,7.4]
[1643831723159,2.15558167,2710.3,2709.8,0.00229715]
[1643831723160,1.113,2710.2,2709.8,0.00229715]
[1643831723359,0.1844,2710.1,2709.8,0.00229715]
[1643831723562,2.64299999,2710.0,2709.8,0.00229715]
[1643831723760,2.64299999,2710.0,2708.8,0.00229715]
[1643831723761,7.6474,2709.9,2708.8,0.00229715]
[1643831723964,1.113,2709.7,2708.8,0.00229715]
[1643831724161,1.113,2709.7,2708.4,0.00229715]
[1643831724162,1.113,2708.7,2708.4,0.00229715]
[1643831724561,1.113,2708.7,2707.2,10.43722441]
[1643831724562,1.113,2708.5,2707.2,10.43722441]
[1643831724759,1.113,2708.5,2707.0,3.3883588]
[1643831724961,1.113,2708.5,2707.5,0.01271045]
[1643831725362,1.31540251,2708.8,2707.6,0.04206334]
[1643831725363,1.113,2708.4,2707.6,0.04206334]
[1643831726209,1.105095,2708.4,2707.6,0.04206334]
[1643831726611,1.105095,2708.4,2707.7,0.1846]
[1643831726810,0.1845,2708.9,2708.3,0.01276997]
[1643831727011,2.2599769,2709.4,2708.3,0.54276997]
[1643831727211,0.18455,2709.5,2708.4,0.1844]
[1643831727411,0.18455,2709.8,2708.5,0.00541437]
[1643831727608,0.18897665,2709.8,2708.5,0.00541437]
[1643831727811,0.18897665,2709.8,2708.1,0.55166073]
[1643831727812,0.92032497,2708.8,2708.1,0.02166073]
[1643831728011,2.24342497,2708.8,2708.1,0.02166073]
[1643831728209,0.4845,2708.7,2708.1,0.02166073]
[1643831728411,2.0755769,2708.6,2707.8,0.04092649]
[1643831728611,1.2975,2708.5,2707.8,0.04092649]
[1643831728812,1.113,2707.7,2707.6,0.04206334]
[1643831729011,1.113,2707.7,2707.2,0.04433703]
[1643831730055,1.113,2707.7,2707.2,0.99194932]
[1643831730255,1.113,2707.7,2707.2,0.04433703]
[1643831731167,1.113,2707.7,2707.3,0.18414]
[1643831731359,1.063,2707.7,2707.2,0.57433703]
[1643831731558,1.063,2707.7,2707.4,0.04320019]
[1643831732359,1.063,2707.7,2707.4,0.04862358]
[1643831732759,1.063,2707.7,2707.5,0.04263176]
[1643831733410,1.063,2707.7,2707.5,0.04805509]
[1643831733411,1.059048,2707.7,2707.5,0.04805509]
[1643831733609,1.059048,2707.7,2707.5,0.00542333]
[1643831733810,3.20480397,2707.6,2707.5,0.00542333]
[1643831734010,1.059048,2707.6,2707.5,0.00542333]
[1643831734210,1.059048,2707.6,2707.5,0.04805509]
[1643831734413,1.059048,2707.6,2707.5,0.04263176]
[1643831734811,1.059048,2707.6,2707.4,0.00542339]
[1643831735611,1.059048,2707.6,2707.1,0.04490546]
[1643831735812,1.059048,2707.4,2707.1,0.04490546]
[1643831736013,1.051143,2707.2,2707.1,0.04490546]
[1643831736214,1.80059804,2707.2,2707.1,0.04490546]
[1643831736414,1.051143,2706.9,2706.3,0.1845]
[1643831736613,1.051143,2706.9,2705.6,0.19417]
[1643831736614,1.051143,2706.7,2705.7,0.1847]
[1643831736863,1.051143,2706.5,2705.7,0.1847]
[1643831737060,1.051143,2706.4,2705.6,0.1847]
[1643831737558,1.051143,2706.4,2705.6,0.1947]
[1643831737858,1.051143,2706.4,2706.1,0.19661926]
[1643831738456,1.051143,2706.4,2705.9,0.00229978]
[1643831738457,1.051143,2706.4,2706.0,0.1847]
[1643831738857,1.051143,2706.4,2706.1,0.84238136]
[1643831738858,1.043239,2706.4,2706.1,0.84238136]
[1643831739457,1.043239,2706.4,2706.2,0.1862849]
[1643831740812,1.043239,2706.4,2706.3,0.00080012]
[1643831741211,0.1847,2707.0,2706.3,5.35080012]
[1643831741412,0.00542873,2707.1,2706.3,5.35080012]
[1643831741611,0.1847,2707.5,2706.7,0.0124343]
[1643831741813,0.1847,2708.2,2706.8,0.53]
[1643831742012,0.00542903,2707.1,2706.9,2.46264058]
[1643831742216,0.00542903,2707.1,2707.0,6.22820435]
[1643831742411,0.00542903,2707.1,2707.0,8.59662986]
[1643831742613,0.00542903,2707.1,2707.0,10.31079986]
[1643831742812,0.1847,2708.5,2707.0,7.94237435]
[1643831743012,0.1847,2708.5,2707.1,0.18679978]
[1643831743212,0.00542928,2707.2,2707.1,1.18679978]
[1643831743612,0.00542928,2707.2,2707.1,6.5345]
[1643831743812,0.00542928,2707.2,2707.1,6.74294509]
[1643831744013,0.1845,2708.4,2707.1,9.0995875]
[1643831744257,0.1845,2708.9,2707.2,0.53]
[1643831744462,0.00542916,2707.3,2707.2,0.53]
[1643831744657,0.00542916,2707.3,2707.2,6.18]
[1643831744860,0.00542916,2707.3,2707.2,7.18]
[1643831745057,0.00542916,2707.3,2707.2,9.40227316]
[1643831745058,2.916e-05,2707.3,2707.2,9.40227316]
[1643831745263,0.1845,2709.2,2707.2,9.40227316]
[1643831745264,0.1845,2709.2,2707.2,17.02827316]
[1643831745460,0.1845,2709.2,2707.6,1.00482085]
[1643831745658,0.1845,2709.2,2707.7,7.47850037]
[1643831745859,0.1845,2709.2,2707.8,1.1846]
[1643831746057,0.1845,2709.4,2708.0,0.00477127]
[1643831746260,0.70987483,2709.7,2708.9,0.18225029]
[1643831746460,4.4,2709.5,2708.6,0.53]
[1643831746661,0.1844,2709.4,2708.8,0.00229978]
[1643831748117,0.00233585,2709.2,2708.8,0.00229978]
[1643831748319,0.1844,2709.1,2708.4,0.443]
[1643831748715,0.1844,2709.1,2708.6,0.20027982]
[1643831748917,0.1844,2709.1,2708.6,1.13077049]
[1643831749116,0.00542733,2708.9,2708.6,1.13077049]
[1643831750022,0.1844,2709.4,2708.5,0.00229978]
[1643831750023,0.38184676,2709.4,2708.5,0.00229978]
[1643831750217,0.8348,2708.9,2708.1,0.1844]
[1643831750420,0.8348,2708.9,2708.2,0.00229798]
[1643831750421,1.14022733,2708.9,2708.2,0.00229798]
[1643831750619,0.1845,2708.8,2708.2,0.00229798]
[1643831750820,0.1845,2708.8,2708.2,0.00706925]
[1643831751018,0.1845,2708.8,2707.7,3.91459996]
[1643831751019,0.1845,2708.8,2707.8,0.00229798]
[1643831751426,0.1345,2708.8,2707.8,0.00229798]
[1643831752568,0.1345,2708.8,2707.9,0.18408]
[1643831752765,0.016,2709.2,2707.9,0.18408]
[1643831752766,0.00543406,2708.4,2708.1,0.01231424]
[1643831753061,0.00543406,2708.4,2708.2,0.6275]
[1643831753262,0.00543406,2708.4,2708.3,6.29811884]
[1643831753461,0.00543406,2708.4,2708.3,6.74111884]
[1643831753664,0.016,2709.2,2708.4,0.0054]
[1643831753864,3.3476643,2711.0,2708.4,0.0054]
[1643831753865,0.1844,2710.2,2709.0,5.35]
[1643831754064,0.1844,2710.4,2709.6,0.01252906]
[1643831754363,0.18458,2711.1,2709.6,0.01252906]
[1643831754364,0.1844,2711.0,2709.6,0.01252906]
[1643831754562,0.1844,2711.0,2709.7,0.443]
[1643831754761,0.72829972,2710.6,2709.7,1.20905024]
[1643831754966,0.72829972,2710.6,2709.3,1.1844]
[1643831754967,0.34968816,2710.5,2709.3,0.6274]
[1643831755168,0.34968816,2710.5,2709.4,0.00229798]
[1643831755363,0.35511988,2710.5,2709.4,0.00229798]
[1643831755612,0.48983172,2710.5,2709.4,0.00229798]
[1643831755908,0.18983172,2710.5,2709.4,0.00229798]
[1643831756109,0.1844,2710.5,2709.4,0.00229798]
[1643831756409,0.1844,2710.5,2709.7,0.94421713]
[1643831756410,0.00543218,2710.1,2709.7,0.94421713]
[1643831756609,0.00543218,2710.1,2709.8,0.20115542]
[1643831757208,0.00543218,2710.1,2709.7,0.94421713]
[1643831757410,0.36898,2710.5,2709.7,0.94421713]
[1643831757610,0.00543218,2710.1,2709.7,0.94421713]
[1643831757814,0.00543218,2710.1,2709.8,0.00229798]
[1643831758310,0.00543218,2710.1,2709.7,0.94421713]
[1643831758511,0.66898,2710.5,2709.7,0.94421713]
[1643831758711,0.66898,2710.5,2709.9,0.15671972]
[1643831758914,0.00543218,2710.1,2709.9,0.15671972]
[1643831759113,0.00543218,2710.1,2709.8,0.00229798]
[1643831759558,0.00543218,2710.1,2709.7,0.94421713]
[1643831759761,0.1844,2710.8,2709.8,2.1681166]
[1643831759958,0.00543218,2710.1,2709.7,0.94421713]
[1643831760157,0.00543218,2710.1,2709.8,5.92017648]
[1643831760364,0.00543218,2710.1,2709.9,0.16652635]
[1643831761062,0.1844,2711.0,2709.9,0.30472631]
[1643831761262,0.63025433,2711.4,2710.0,3.46200069]
[1643831761263,0.00533027,2710.1,2710.0,3.46200069]
[1643831761463,0.00533027,2710.1,2710.0,5.9774]
[1643831761660,0.00533027,2710.1,2710.0,7.46148]
[1643831761661,3.027e-05,2710.1,2710.0,7.46148]
[1643831761860,0.1844,2711.3,2710.1,5.35520182]
[1643831762060,8.98840947,2712.2,2710.2,2.88570518]
[1643831762061,0.1844,2711.7,2710.2,2.88570518]
[1643831762260,0.1844,2711.9,2710.2,4.18489718]
[1643831762461,1.56402632,2711.8,2710.2,4.18489718]
[1643831762662,1.56402632,2711.8,2710.2,4.18925364]
[1643831762865,1.08527752,2712.1,2710.2,2.11502846]
[1643831762866,1.56402632,2711.7,2710.2,2.11502846]
[1643831763107,0.1844,2711.9,2710.3,0.92206]
[1643831763403,1.56398611,2711.8,2710.4,1.11148]
[1643831763604,1.56398611,2711.7,2710.4,1.11148]
[1643831763805,0.94452949,2711.5,2710.6,0.81808245]
[1643831764005,0.4844,2712.0,2710.7,0.6274]
[1643831764006,3.63481323,2712.0,2710.7,0.6274]
[1643831764207,1.56405081,2711.9,2710.7,0.81148]
[1643831764604,0.1844,2712.2,2710.7,0.81148]
[1643831764605,1.56405081,2711.8,2710.7,0.81148]
[1643831764805,1.56405081,2711.7,2710.7,0.6274]
[1643831765005,0.00543733,2711.4,2710.7,0.6274]
[1643831765306,0.00543733,2711.4,2710.7,0.1844]
[1643831765307,1.56413656,2711.3,2710.7,0.1844]
[1643831766106,1.1844,2711.7,2710.7,0.1844]
[1643831766107,0.00543768,2711.1,2710.7,0.1844]
[1643831766506,0.00543768,2711.1,2710.2,1.13865803]
[1643831766761,1.56419218,2711.0,2710.1,1.2174]
[1643831766963,2.1706743,2710.9,2709.9,3.95729996]
[1643831767158,1.56419218,2710.8,2710.0,0.1844]
[1643831767358,2.28645267,2710.7,2710.0,0.1844]
[1643831767559,1.56419218,2710.6,2709.9,0.13819996]
[1643831768263,2.22093381,2710.5,2709.7,0.1844]
[1643831768459,1.93317218,2710.4,2709.6,0.00229798]
[1643831768659,1.93317218,2710.4,2709.4,0.00229798]
[1643831768660,1.56419218,2710.3,2709.4,0.00229798]
[1643831769061,0.18983854,2710.4,2709.9,0.19272885]
[1643831769359,0.1844,2710.6,2709.6,0.78172237]
[1643831769559,1.56452329,2710.5,2709.6,0.78172237]
[1643831769760,0.00511355,2710.2,2709.6,0.78172237]
[1643831770359,0.00511355,2710.2,2709.8,0.14620512]
[1643831770606,0.1844,2710.7,2709.8,0.14620512]
[1643831770811,1.56451673,2710.6,2709.8,0.14620512]
[1643831771006,0.00511359,2710.2,2709.8,0.14620512]